Cogmind - Beta 13 @@@ ROGUE MODE // 2024.04.07 @ 19:29:03 Player: Cwaftwer Result: Destroyed by G-34 Mercenary with Small Laser Performance ------------- Evolutions (1) 500 Regions Visited (3) 600 Robots Destroyed (32) 160 Value Destroyed (840) 840 Prototype IDs (5) 100 Alien Tech Used (0) 0 Bonus (0) 0 TOTAL SCORE: 2200 Bonus ------- None Cogmind --------- Core Integrity 0/400 Matter 272/300 Energy 272/460 System Corruption 0% Temperature Cool (59) Movement Treading (240) Ox1 Location -9/Mines Parts ------- > --- POWER (2) -------- Heavy Ion Engine Heavy Ion Engine > --- PROPULSION (2) --- Light Treads Light Treads > --- UTILITY (2) ------ Heat Sink Large Storage Unit > --- WEAPON (3) ------- Beam Rifle Light EM Pulse Cannon Heavy Assault Rifle > --- INVENTORY (15) --- Light Ion Engine Improved Ion Engine Improved Ion Engine Heavy Ion Engine Wheel Heat Sink Medium Battery (150) Medium Matter Pod (100) Katana Peak State ------------ > --- POWER ------------ Heavy Ion Engine Light Nuclear Core > --- PROPULSION ------- Light Treads Light Treads > --- UTILITY ---------- Heat Sink Large Storage Unit > --- WEAPON ----------- Improved EM Shotgun Field Laser Field Laser > --- INVENTORY -------- Improved Ion Engine Improved Ion Engine Heavy Ion Engine Heavy Ion Engine Heavy Ion Engine Light Treads Light Treads Medium Battery Field Laser Katana [Rating: 21] Favorites ----------- Power Improved Ion Engine Engine Improved Ion Engine Power Core Light Nuclear Core Propulsion Light Treads Treads Light Treads Wheel Wheel Utility Small Storage Unit Device Heat Sink Storage Small Storage Unit Processor Visual Processing Unit Weapon Field Laser Energy Gun Field Laser Energy Cannon Particle Cannon Ballistic Gun Heavy Assault Rifle Ballistic Cannon Light Cannon Build | -11 -10 -9 -9 ------- Run | Yrd Mat Mat Min Slots Evolved 2 | . . 2 . Power 1 | . . 1 . Propulsion . | . . . . Utility . | . . . . Weapon 1 | . . 1 . Parts Attached 54 | 6 10 35 3 Power 11 | 1 2 6 2 Engine 10 | 1 2 5 2 Core 1 | . . 1 . Reactor . | . . . . Propulsion 9 | 2 2 5 . Treads 7 | . 2 5 . Leg . | . . . . Wheel 2 | 2 . . . Hover . | . . . . Flight . | . . . . Utility 8 | 1 2 5 . Device 3 | . . 3 . Storage 3 | 1 . 2 . Processor 2 | . 2 . . Hackware . | . . . . Protection . | . . . . Artifact . | . . . . Weapon 26 | 2 4 19 1 Energy Gun 14 | 2 . 12 . Energy Cannon 8 | . 2 5 1 Ballistic Gun 2 | . . 2 . Ballistic Cannon 2 | . 2 . . Launcher . | . . . . Special Weapon . | . . . . Impact Weapon . | . . . . Slashing Weapon . | . . . . Piercing Weapon . | . . . . Special Melee Weapon . | . . . . Unidentified Prototypes 4 | . . 4 . Parts Lost 9 | . . 8 1 Power 4 | . . 3 1 Propulsion 1 | . . 1 . Utility 1 | . . 1 . Weapon 3 | . . 3 . Highest Loss Streak 2 | . . 2 1 To Critical Strikes . | . . . . Average Slot Usage (%) 89 | . 98 86 100 Engine 17 | . 14 18 22 Treads 23 | . 26 21 22 Device 1 | . . 1 11 Storage 11 | . 14 10 11 Processor 4 | . 12 1 . Energy Gun 15 | . 3 20 11 Energy Cannon 10 | . 21 5 11 Ballistic Gun 2 | . . 3 11 Ballistic Cannon 1 | . 2 . . Naked Turns . | . . . . Heaviest Build 43 | 14 20 43 . Greatest Support 40 | 20 40 40 . Greatest Overweight (x) 1 | . . 1 . Average Overweight (x) . | . . . . Largest Inventory Capacity 15 | 8 8 15 15 Average Capacity 11 | 7 8 12 15 Most Carried 13 | 5 8 13 10 Average Carried 8 | 2 7 9 9 Final Capacity 15 | 8 8 15 15 Final Carried 11 | 4 8 11 9 Class Distribution -------------------- 49% | Gunner 37% | Mutant 8% | Skirmisher 4% | Scavenger-Mutant Dominant Class ---------------- Mutant | -10/Materials Gunner | -9/Materials Gunner | -9/Mines Resources | -11 -10 -9 -9 ----------- Run | Yrd Mat Mat Min Matter Collected 859 | 220 108 531 . Remotely . | . . . . Salvage Created 1146 | . 141 1005 . Parts 81 | . 8 73 . Haulers Intercepted 1 | . . 1 . Recyclers Shooed . | . . . . Parts Field Recycled . | . . . . Retrieved Matter . | . . . . Parts Self-Destructed . | . . . . Prevented . | . . . . Kills | -11 -10 -9 -9 ------- Run | Yrd Mat Mat Min Combat Hostiles Destroyed 24 | . 4 20 . Guns 12 | . . 12 . Cannons 8 | . 4 4 . AOE 4 | . . 4 . Classes Destroyed 10 | . 3 7 . Worker 1 | . . 1 . Builder 2 | . . 2 . Hauler 1 | . . 1 . Recycler 1 | . 1 . . Operator 1 | . . 1 . Watcher 2 | . . 2 . Swarmer 6 | . 3 3 . Grunt 12 | . 1 11 . Duelist 1 | . . 1 . Sentry 5 | . . 5 . Best Kill Streak 8 | . 3 8 . Combat Bots Only 6 | . 3 6 . Max Kills in Single Turn 3 | . 1 3 . Gunslinging . | . . . . Exploded 2 | . . 2 . Melee . | . . . . Uniques/NPCs Destroyed . | . . . . Combat | -11 -10 -9 -9 -------- Run | Yrd Mat Mat Min Hostile Shots Fired 158 | . 35 112 11 Missed 38 | . 13 22 3 Damage Taken 1815 | . 253 1467 95 Core 495 | . 92 391 12 Absorbed by Shields . | . . . . Regen/Repaired (Parts) 359 | . . 359 . Core Remaining (%) 81 | 100 63 . . Volleys Fired 66 | . 20 45 1 Largest 3 | . 2 3 3 Hottest 194 | . 136 194 135 Shots Fired 155 | . 40 112 3 Gun 95 | . . 93 2 Cannon 60 | . 40 19 1 Launcher . | . . . . Special . | . . . . Kinetic 12 | . . 11 1 Thermal 109 | . 40 68 1 Explosive . | . . . . Electromagnetic 34 | . . 33 1 Robot Hit Streak 18 | . 6 18 14 Robot Miss Streak 4 | . 3 4 . Penetration Max . | . . . . Secondary Targets 3 | . . 3 . Max Gunslinging Chain 1 | . . 1 . Shots Hit Robots 95 | . 17 75 3 Core Hits 49 | . 5 42 2 Critical Kills . | . . . . Critical Parts Destroyed . | . . . . Critical Strikes . | . . . . Melee Attacks . | . . . . Impact . | . . . . Slashing . | . . . . Piercing . | . . . . Sneak Attacks . | . . . . Combat Hostiles . | . . . . Follow-up Attacks . | . . . . Damage Inflicted 2065 | . 350 1662 53 Guns 1117 | . . 1089 28 Cannons 562 | . 350 187 25 Explosions 386 | . . 386 . Melee . | . . . . Ramming . | . . . . Kinetic 130 | . . 117 13 Thermal 1481 | . 350 1116 15 Explosive . | . . . . Electromagnetic 454 | . . 429 25 Impact . | . . . . Slashing . | . . . . Piercing . | . . . . Highest Corruption . | . . . . Average Corruption . | . . . . Corruption Purged . | . . . . Corruption Blocked . | . . . . Overload Shots . | . . . . Overflow Damage 21 | . 11 10 . Projectiles 11 | . 11 . . Explosions 10 | . . 10 . Melee . | . . . . Knockbacks . | . . . . Impact . | . . . . Kinetic . | . . . . Secondary . | . . . . Self-Inflicted Damage 126 | . . 126 . Shots 3 | . . 3 . Rammed . | . . . . Targets Rammed . | . . . . Kicked . | . . . . Crushed . | . . . . Highest Temperature 837 | . 552 837 53 Average Temperature 259 | . 176 294 43 Received Heat Transfer 558 | . 12 492 54 Effects 77 | . 8 69 . Shutdowns 15 | . 1 14 . Energy Bleed 9 | . 2 7 . Interference 11 | . 1 10 . Matter Decay 4 | . . 4 . Short Circuit 6 | . 2 4 . Damage (minor) 6 | . . 6 . Damage (major) 21 | . . 21 . Damage (core) 5 | . 2 3 . Siege Activations . | . . . . Robots Corrupted . | . . . . Combat Hostiles . | . . . . Parts Fried . | . . . . Impact Corruptions . | . . . . Robots Melted . | . . . . Combat Hostiles . | . . . . Parts Melted 4 | . . 4 . Heat Transferred 2646 | . 629 1980 37 Parts Sabotaged . | . . . . Parts Stolen . | . . . . Parts Stripped . | . . . . Power Chain Reactions 4 | . . 4 . Alert | -11 -10 -9 -9 ------- Run | Yrd Mat Mat Min Peak Influence 222 | . 75 222 85 Initial 70 | . . 25 70 Average 96 | . 45 123 75 Maximum Alert Level 1 | . . 1 . Low Security (%) 79 | 100 100 69 100 Level 1 20 | . . 30 . Level 2 . | . . . . Level 3 . | . . . . Level 4 . | . . . . Level 5 . | . . . . High Security . | . . . . Max Security . | . . . . Squads Dispatched 3 | . 1 2 . Investigation 1 | . . 1 . Extermination . | . . . . Reinforcement 2 | . 1 1 . Assault . | . . . . Garrison . | . . . . Intercept . | . . . . Searches Triggered . | . . . . Construction Impeded . | . . . . Haulers Reinforced . | . . . . Active Scanning Responses . | . . . . Cargo Convoy Interrupts . | . . . . Stealth | -11 -10 -9 -9 --------- Run | Yrd Mat Mat Min Distress Signals 2 | . . 2 . Communications Jammed . | . . . . Distress Signals . | . . . . Times Spotted 42 | . 8 31 3 Peak Tracking Total 7 | . 3 7 3 Tactical Retreats . | . . . . Traps | -11 -10 -9 -9 ------- Run | Yrd Mat Mat Min Traps Triggered . | . . . . Indirectly . | . . . . Trap Hack Attempts . | . . . . Triggered . | . . . . Disarmed . | . . . . Reprogrammed . | . . . . Reused . | . . . . Traps Extracted . | . . . . Installed . | . . . . Triggered . | . . . . Machines | -11 -10 -9 -9 ---------- Run | Yrd Mat Mat Min Machines Disabled 2 | . . 2 . Max in Single Turn 1 | . . 1 . Machines Repaired . | . . . . Machines Dismantled . | . . . . Machines Sabotaged . | . . . . Overloaded Fab Kills . | . . . . Hacking | -11 -10 -9 -9 --------- Run | Yrd Mat Mat Min Machines Accessed 7 | . 1 6 . Terminals 5 | . 1 4 . Fabricators . | . . . . Repair Stations 1 | . . 1 . Recycling Units 1 | . . 1 . Scanalyzers . | . . . . Garrison Access . | . . . . Total Hacks 22 | . 1 21 . Successful 14 | . . 14 . Failed 8 | . 1 7 . Catastrophic 1 | . 1 . . Database Lockouts . | . . . . Manual . | . . . . Terminals 11 | . 1 10 . Fabricators . | . . . . Repair Stations 9 | . . 9 . Recycling Units 2 | . . 2 . Scanalyzers . | . . . . Garrison Access . | . . . . Terminal Hacks 7 | . . 7 . Prototype ID Bank 1 | . . 1 . Emergency Access Points 1 | . . 1 . Alert Level 1 | . . 1 . Locate Traps 2 | . . 2 . Dispatch Records 1 | . . 1 . Hauler Manifests 1 | . . 1 . Fabricator Hacks . | . . . . Repair Station Hacks 5 | . . 5 . Scan Component 3 | . . 3 . Repair 2 | . . 2 . Recycling Unit Hacks 2 | . . 2 . Process 1 | . . 1 . Report Inventory 1 | . . 1 . Scanalyzer . | . . . . Garrison Access Hacks . | . . . . Unauthorized Hacks . | . . . . Terminals . | . . . . Fabricators . | . . . . Repair Stations . | . . . . Recycling Units . | . . . . Scanalyzers . | . . . . Garrison Access . | . . . . Data Cores Recovered 1 | . . 1 . Used . | . . . . Hacking Detections 4 | . 1 3 . Full Trace Events 1 | . . 1 . Feedback Events . | . . . . Feedback Blocked . | . . . . Robot Schematics Acquired . | . . . . Robots Built . | . . . . Authchips . | . . . . Time . | . . . . Total Robot Build Rating . | . . . . Part Schematics Acquired . | . . . . Parts Built . | . . . . Authchips . | . . . . Time . | . . . . Total Part Build Rating . | . . . . Parts Repaired 2 | . . 2 . Time 52 | . . 52 . Parts Recycled . | . . . . Recycled Matter 335 | . . 335 . Retrieved Matter . | . . . . Retrieved Components . | . . . . Parts Scanalyzed . | . . . . Part Schematics Acquired . | . . . . Parts Damaged . | . . . . Bothacking | -11 -10 -9 -9 ------------ Run | Yrd Mat Mat Min Used RIF Installer . | . . . . Robots Hacked . | . . . . Non-combat . | . . . . Combat . | . . . . Robot Hacks Applied . | . . . . Relay Couplers Released . | . . . . Fabnet Peak Effective % . | . . . . Robots Rewired . | . . . . Allies Hacked . | . . . . Hacks Repelled . | . . . . Allies | -11 -10 -9 -9 -------- Run | Yrd Mat Mat Min Total Allies . | . . . . Largest Group . | . . . . Highest-Rated Group . | . . . . Highest-Rated Ally . | . . . . Total Orders . | . . . . Ally Attacks . | . . . . Total Damage . | . . . . Kills . | . . . . Allies Corrupted . | . . . . Allies Melted . | . . . . Intel | -11 -10 -9 -9 ------- Run | Yrd Mat Mat Min Robot Analysis Total . | . . . . Derelict Logs Recovered . | . . . . Drone Launches . | . . . . Drone Recoveries . | . . . . Exploration | -11 -10 -9 -9 ------------- Run | Yrd Mat Mat Min Turns Passed 2009 | 55 608 1340 6 Spaces Moved 838 | 50 228 560 . Core 4 | 4 . . . Treads 753 | . 193 560 . Legs . | . . . . Wheels 81 | 46 35 . . Hover . | . . . . Flight . | . . . . Fastest Speed 50 | 50 80 160 . Average Speed 165 | 77 147 180 . Slowest Speed 240 | 80 160 240 . Overloaded Moves . | . . . . Propulsion Burnouts . | . . . . Robots Hopped . | . . . . Cave-ins Triggered . | . . . . Exploration Rate (%) 24 | 4 38 52 3 Regions Visited 3 Branch Regions 1 Pre-discovered Areas . | . . . . Known Exits Taken . | . . . . Unknown Exits Taken 3 | 1 1 1 . Scrap Searched . | . . . . Spaces Dug . | . . . . Terrain Destroyed 15 | . . 15 . Melee . | . . . . Projectile 2 | . . 2 . AOE 13 | . . 13 . Terrain Rammed . | . . . . Walls Destroyed . | . . . . Machines Disabled . | . . . . Actions | -11 -10 -9 -9 --------- Run | Yrd Mat Mat Min Total 1338 | 65 464 805 4 Wait 272 | . 176 96 . Move 835 | 49 227 559 . Hop . | . . . . Pick Up 71 | 10 17 44 . Fast Attach . | . . . . Attach 36 | 6 5 23 2 Detach 3 | . 2 1 . Swap 18 | . 5 12 1 Drop 37 | . 12 25 . Fire 66 | . 20 45 1 Melee . | . . . . Ram . | . . . . Kick . | . . . . Crush . | . . . . Escape Stasis . | . . . . Rewire . | . . . . Trap . | . . . . Miscellaneous . | . . . . Route ------- -11/Scrapyard -10/Materials -9/Materials -9/Mines History --------- Turn | Location | Event 21 | -11/Scrapyard | Discovered new exit (range 15) 56 | -11/Scrapyard | Entered Materials 318 | -10/Materials | Build established: Mutant 617 | -10/Materials | Discovered new exit (range 17) 664 | -10/Materials | Entered another Materials area 664 | -9/Materials | Evolved 2 slots: Power x1, Weapon x1 1202 | -9/Materials | Build established: Gunner 1406 | -9/Materials | Core integrity fell below 50% 1524 | -9/Materials | Core integrity fell below 20% 1635 | -9/Materials | Discovered new exit (range 7) 1778 | -9/Materials | Repaired Lrg. Storage Unit 1839 | -9/Materials | Repaired Lgt. Treads 2004 | -9/Materials | Entered Mines 2010 | -9/Mines | Destroyed by G-34 Mercenary with Small Laser Last Messages --------------- R-06 Scavenger collects Lgt. Treads. Acquired Heat Sink. K-01 Serf collects debris. R-06 Scavenger collects Sensor Array. K-01 Serf collects debris. Acquired Heat Sink. Acquired 10 matter. K-01 Serf collects debris. W-16 Scout destroyed. K-01 Serf collects debris. Acquired 3 matter. K-01 Serf collects debris. Acquired Lgt. EM Pulse Cannon. R-06 Scavenger collects Lgt. Ion Engine. R-06 Scavenger collects Corrupted Sensor Array. R-06 Scavenger collects Hover Unit. R-06 Scavenger collects Aluminum Leg. LOCATION=UNKNOWN GOAL=ESCAPE Hvy. Ion Engine destroyed. Map ----- +----------------------------------------------------+ | ??????????????????????????????????????? | | ??????????????????????????????????????? | | ??????????????????????????????????????? | | ??????????????????????????????????????? | | ??????????????????????????????????????? | | ??????????????????????????????????????? | | ??????????????????????????????????????? | | ??????????????????????????????????????? | | ??????????????????????????????????????? | | ??????????????????????????????????????? | | ??????????????????????????????????????? | | ??????????????????????????????????????? | | ??????????????????????????????????????? | | ??????????????????????????????????????? | | ??????????????????????????????????????? | | ??????????????????????????????????????? | | ??????????????????????????????????????? | | ??????????????????????????????????????? | | ??????????????????????????????????????? | | ??????????????????????????????????????? | | ????????????# ????????????????????????? | | ???????????#t ########??????????????? | | ?????????????? ###???????????? | | ????????????????? ##??????????? | | ????????????????????# g #??????????? | | ????????????????????# g@ #??????????? | | ????????????????????# g ##??????????? | | ????????????????? ##???????????? | | ????????????????#### ?????????????? | | ???????????????????# ?????????????? | | ???????????????????## ?????????????? | | ????????????????????## ??????????????? | | ?????????????????????###??????????????? | | ??????????????????????????????????????? | | ??????????????????????????????????????? | | ??????????????????????????????????????? | | ??????????????????????????????????????? | | | | | | | | | | | | | | | | | | | | | | | | | | | +----------------------------------------------------+ Best States ------------- Heat Dissipation 38 Energy Generation 23 Energy Capacity 460 Matter Stores 300 Matter Capacity 300 Sight Range 18 Terrain Scan Density 10 Evasion (%) 44 Recoil Reduction 2 Item Schematics ----------------- None Robot Schematics ------------------ None Fabricated ------------ Nothing Alien Tech Used ----------------- None Achievements -------------- None Challenges ------------ None Game ------ Seed AblativeGammaStreamer Manual? 0 Play Time 00:20:35 Cumulative 16.0 hours Start 2024.04.07 @ 19:08:07 End 2024.04.07 @ 19:29:03 Sessions 1 Manual Loads 0 Difficulty Rogue Special Mode None Game No. 23 Rogue 22 Adventurer 1 Explorer 0 Win Type - Total 0 Types 0/0/0/0/0/0/0/0/0 Lore% 16 Gallery% 23 Achievement% 19 Wizard Run 0 Options --------- Layout 1 ASCII 0 Keyboard 0 Movement Mouse Keybinds 0 Fullscreen 1 Font 24/Smallcaps Map View 50x40 Zoom Use 0% Tactical HUD 0 Map Filters NONE Filters NONE Steam 1 RUN: 5fda5ae7-a56c-4fd5-a79d-fc75fe76486e